fUSD/lending_fUSD_20260627
["ID","MTS","AMOUNT","RATE_DAILY","PERIOD"]
[426530129,1782546632000,-500.0,0.0001499,2]
[426530130,1782546632000,-500.0,0.0001499,2]
[426530133,1782546632000,-500.0,0.0001499,2]
[426530132,1782546632000,-500.0,0.0001499,2]
[426530128,1782546632000,-500.0,0.0001499,2]
[426530127,1782546632000,-500.0,0.0001499,2]
[426530137,1782546632000,-500.0,0.0001499,2]
[426530135,1782546632000,-500.0,0.0001499,2]
[426530138,1782546632000,-500.0,0.0001499,2]
[426530122,1782546632000,-717.38288983,0.00014891,2]
[426530131,1782546632000,-500.0,0.0001499,2]
[426530124,1782546632000,-33336.8515,0.000149,2]
[426530106,1782546632000,-154.39,0.00013757,2]
[426530113,1782546632000,-1000.0,0.00013774,2]
[426530104,1782546632000,-1000.0,0.00013187,2]
[426530101,1782546632000,-166.66,0.00012978,2]
[426530102,1782546632000,-178.4,0.00013105,2]
[426530105,1782546632000,-154.39,0.00013444,2]
[426530103,1782546632000,-154.39,0.00013132,2]
[426530110,1782546632000,-153.0,0.00013774,2]
[426530136,1782546632000,-500.0,0.0001499,2]
[426530107,1782546632000,-152.0,0.00013774,2]
[426530119,1782546632000,-170.03,0.00014861,2]
[426530118,1782546632000,-403.09,0.00014525,2]
[426530115,1782546632000,-168.79,0.00013921,2]
[426530112,1782546632000,-1000.0,0.00013774,2]
[426530120,1782546632000,-2500.0,0.00014891,2]
[426530117,1782546632000,-428.687829,0.00014,2]
[426530121,1782546632000,-154.96128957,0.00014891,2]
[426530116,1782546632000,-151.0,0.00013947,2]
[426530143,1782546632000,-500.0,0.0001499,2]
[426530108,1782546632000,-150.0,0.00013774,2]
[426530140,1782546632000,-500.0,0.0001499,2]
[426530164,1782546632000,-5724.1484194,0.00014991,2]
[426530163,1782546632000,-57921.8159606,0.00014991,2]
[426530162,1782546632000,-2013.4234371,0.00014991,2]
[426530161,1782546632000,-600.0,0.0001499,2]
[426530166,1782546632000,-62357.3426828,0.00014991,2]
[426530165,1782546632000,-245.9716358,0.00014991,2]
[426530160,1782546632000,-500.0,0.0001499,2]
[426530167,1782546632000,-962.5908259,0.00014991,2]
[426530172,1782546632000,-500.0,0.00014999,2]
[426530169,1782546632000,-500.0,0.00014998,2]
[426530171,1782546632000,-500.0,0.00014999,2]
[426530173,1782546632000,-500.0,0.00014999,2]
[426530175,1782546632000,-500.0,0.00014999,2]
[426530177,1782546632000,-505.45990089,0.00014999,2]
[426530168,1782546632000,-500.0,0.00014996,2]
[426530158,1782546632000,-500.0,0.0001499,2]
[426530170,1782546632000,-200.0,0.00014999,2]
[426530157,1782546632000,-500.0,0.0001499,2]
[426530156,1782546632000,-500.0,0.0001499,2]
[426530144,1782546632000,-500.0,0.0001499,2]
[426530139,1782546632000,-500.0,0.0001499,2]
[426530145,1782546632000,-500.0,0.0001499,2]
[426530142,1782546632000,-500.0,0.0001499,2]
[426530146,1782546632000,-500.0,0.0001499,2]
[426530147,1782546632000,-500.0,0.0001499,2]
[426530149,1782546632000,-500.0,0.0001499,2]
[426530141,1782546632000,-630.4690404,0.0001499,2]
[426530150,1782546632000,-500.0,0.0001499,2]
[426530151,1782546632000,-500.0,0.0001499,2]
[426530159,1782546632000,-500.0,0.0001499,2]
[426530153,1782546632000,-500.0,0.0001499,2]
[426530148,1782546632000,-500.0,0.0001499,2]
[426530154,1782546632000,-419.07870563,0.0001499,2]
[426530155,1782546632000,-500.0,0.0001499,2]
[426530152,1782546632000,-500.0,0.0001499,2]
[426530213,1782546638000,-1148.53642385,0.00015,2]
[426530212,1782546638000,-11558.58815805,0.00015,2]
[426530335,1782546639000,-300.0,0.00015,2]
[426530341,1782546642000,-297.87540616,0.00015,2]
[426530340,1782546642000,-1148.92651678,0.00015,2]
[426530339,1782546642000,-2584.64518492,0.00015,2]
[426530342,1782546643000,-20.09661677,0.00015,2]
[426530343,1782546643000,-525.6,0.00015,2]
[426530344,1782546643000,-293.67318987,0.00015,2]
[426530353,1782546646000,-1070.40966087,0.00015,2]
[426530347,1782546646000,-3847.30794451,0.00015,2]
[426530348,1782546646000,-1219.89093319,0.00015,2]
[426530349,1782546646000,-421.76291713,0.00015,2]
[426530355,1782546646000,-9639.91819722,0.00015,2]
[426530351,1782546646000,-961.29002858,0.00015,2]
[426530352,1782546646000,-1250.94826893,0.00015,2]
[426530354,1782546646000,-335.819307,0.00015,2]
[426530350,1782546646000,-8112.69359276,0.00015,2]
[426530357,1782546668000,73.57527234,9.753e-05,2]
[426530358,1782546668000,76.42472766,9.753e-05,2]
[426530359,1782546720000,466.0,0.00037304,120]
[426530361,1782546956000,205.0,9.8e-05,2]
[426530366,1782546998000,15232.88018989,0.00037304,120]
[426530369,1782547030000,167.25804105,0.0001,2]
[426530370,1782547030000,1713.94183718,0.0001,2]
[426530368,1782547030000,77.99606216,0.0001,2]
[426530371,1782547037000,56825.26013118,0.00037304,120]
[426530373,1782547042000,2774.661949,0.0001,2]
[426530374,1782547043000,36050.86252642,0.00037304,120]
[426530383,1782547060000,5940.10411431,9.04e-05,2]
[426530388,1782547595000,15000.0,0.00013125,45]
[426530392,1782547760000,-150.0,0.00012482,2]
[426530393,1782547760000,-4601.76875899,0.000129,15]
[426530391,1782547760000,-287.72846478,0.00012136,2]
[426530390,1782547760000,-195.04672423,0.00011915,2]
[426530389,1782547760000,-150.0,0.00011558,2]
[426530396,1782547831000,-8873.18588421,0.000129,15]
[426530397,1782547831000,-152.0,0.000129,2]
[426530395,1782547831000,-164.66,0.00012276,2]
[426530398,1782547831000,-151.0,0.00012905,2]
[426530400,1782547831000,-151.0,0.00012999,2]
[426530401,1782547831000,-150.0,0.00013085,2]
[426530399,1782547831000,-150.0,0.00012924,2]
[426530440,1782547832000,-150.0,0.00014011,2]
[426530424,1782547832000,-150.0,0.00013613,2]
[426530426,1782547832000,-195.04672423,0.00013709,2]
[426530435,1782547832000,-150.0,0.00013862,2]
[426530434,1782547832000,-151.0,0.00013829,2]
[426530436,1782547832000,-150.0,0.00013932,2]
[426530439,1782547832000,-150.0,0.00014011,2]
[426530443,1782547832000,-151.0,0.00014011,2]
[426530441,1782547832000,-151.0,0.00014011,2]
[426530437,1782547832000,-166.98,0.00013974,2]
[426530448,1782547832000,-152.0,0.00014013,2]
[426530438,1782547832000,-150.0,0.00013987,2]
[426530442,1782547832000,-151.0,0.00014011,2]
[426530445,1782547832000,-176.97799874,0.00014011,2]
[426530455,1782547832000,-600.0,0.0001419,2]
[426530429,1782547832000,-297.77,0.00013709,2]
[426530447,1782547832000,-152.0,0.00014011,2]
[426530450,1782547832000,-153.0,0.00014038,2]
[426530452,1782547832000,-151.0,0.00014119,2]
[426530451,1782547832000,-150.0,0.00014112,2]
[426530449,1782547832000,-151.0,0.00014018,2]
[426530453,1782547832000,-502.0,0.00014137,2]
[426530444,1782547832000,-150.0,0.00014011,2]
[426530430,1782547832000,-150.0,0.00013737,2]
[426530433,1782547832000,-200.0,0.00013829,2]
[426530422,1782547832000,-500.0,0.00013507,2]
[426530402,1782547832000,-200.0,0.00013098,2]
[426530403,1782547832000,-49098.03,0.00013107,2]
[426530406,1782547832000,-525.87,0.0001313,2]
[426530405,1782547832000,-169.67,0.00013129,2]
[426530404,1782547832000,-1000.0,0.00013125,2]
[426530407,1782547832000,-195.04672423,0.00013281,2]
[426530409,1782547832000,-163.83,0.00013304,2]
[426530408,1782547832000,-975.72,0.00013281,2]
[426530415,1782547832000,-150.0,0.00013488,2]
[426530412,1782547832000,-150.0,0.00013324,2]
[426530417,1782547832000,-150.0,0.00013488,2]
[426530411,1782547832000,-165.59,0.00013319,2]
[426530410,1782547832000,-150.0,0.00013304,2]
[426530414,1782547832000,-150.0,0.00013488,2]
[426530416,1782547832000,-150.63149704,0.00013488,2]
[426530413,1782547832000,-151.0,0.00013401,2]
[426530418,1782547832000,-152.70737994,0.00013488,2]
[426530420,1782547832000,-150.0,0.00013488,2]
[426530419,1782547832000,-150.0,0.00013488,2]
[426530421,1782547832000,-150.0,0.00013488,2]
[426530431,1782547832000,-195.7,0.00013798,2]
[426530432,1782547832000,-153.0,0.00013798,2]
[426530428,1782547832000,-150.0,0.00013709,2]
[426530427,1782547832000,-151.0,0.00013709,2]
[426530456,1782547832000,-606.67372787,0.0001419,2]
[426530446,1782547832000,-152.0,0.00014011,2]
[426530454,1782547832000,-600.0,0.0001419,2]
[426530483,1782547832000,-3159.31346163,0.00014791,2]
[426530487,1782547832000,-151.0,0.00014884,2]
[426530488,1782547832000,-500.0,0.00014886,2]
[426530490,1782547832000,-161.31685485,0.00014886,2]
[426530489,1782547832000,-500.0,0.00014886,2]
[426530491,1782547832000,-500.6527427,0.00014886,2]
[426530492,1782547832000,-500.0,0.00014886,2]
[426530493,1782547832000,-500.0,0.00014886,2]
[426530494,1782547832000,-368.37773994,0.00014886,2]
[426530495,1782547832000,-500.0,0.00014886,2]
[426530499,1782547832000,-500.0,0.00014886,2]
[426530497,1782547832000,-500.0,0.00014886,2]
[426530496,1782547832000,-500.0,0.00014886,2]
[426530500,1782547832000,-500.0,0.00014886,2]
[426530501,1782547832000,-500.0,0.00014886,2]
[426530504,1782547832000,-500.0,0.00014886,2]
[426530505,1782547832000,-500.0,0.00014886,2]
[426530502,1782547832000,-500.0,0.00014886,2]
[426530508,1782547832000,-5937.76332814,0.00014887,2]
[426530506,1782547832000,-1132.46,0.00014886,2]
[426530503,1782547832000,-406.38917242,0.00014886,2]
[426530507,1782547832000,-82399.64280073,0.00014887,2]
[426530457,1782547832000,-300.0,0.0001419,2]
[426530484,1782547832000,-21701.3175,0.000148,2]
[426530480,1782547832000,-169.67,0.0001477,2]
[426530498,1782547832000,-500.0,0.00014886,2]
[426530479,1782547832000,-150.0,0.00014737,2]
[426530481,1782547832000,-667.6772,0.00014787,2]
[426530460,1782547832000,-200.0,0.0001419,2]
[426530461,1782547832000,-300.1513056,0.0001419,2]
[426530459,1782547832000,-300.0,0.0001419,2]
[426530462,1782547832000,-150.0,0.00014237,2]
[426530463,1782547832000,-150.0,0.00014237,2]
[426530464,1782547832000,-150.0,0.00014237,2]
[426530465,1782547832000,-150.0,0.00014237,2]
[426530471,1782547832000,-152.0,0.00014455,2]
[426530470,1782547832000,-151.0,0.00014447,2]
[426530468,1782547832000,-500.80717316,0.00014374,2]
[426530469,1782547832000,-150.0,0.00014445,2]
[426530467,1782547832000,-150.0,0.00014362,2]
[426530458,1782547832000,-300.0,0.0001419,2]
[426530466,1782547832000,-216.41216589,0.00014354,2]
[426530472,1782547832000,-150.0,0.00014487,2]
[426530474,1782547832000,-700.0,0.00014607,2]
[426530473,1782547832000,-152.0,0.00014487,2]
[426530476,1782547832000,-151.0,0.00014617,2]
[426530478,1782547832000,-566.89,0.00014712,2]
[426530475,1782547832000,-150.0,0.00014612,2]
[426530486,1782547832000,-150.0,0.00014861,2]
[426530485,1782547832000,-192.77350889,0.000148,2]
[426530477,1782547832000,-151.0,0.00014617,2]
[426530482,1782547832000,-5687.2618,0.00014787,2]
[426530510,1782547833000,-342.08522429,0.00014887,2]
[426530509,1782547833000,-1809.19730255,0.00014887,2]
[426530513,1782547833000,-250.0,0.00014887,2]
[426530512,1782547833000,-2508.4611107,0.00014887,2]
[426530511,1782547833000,-2829.36617309,0.00014887,2]
[426530527,1782547838000,-586.49275275,0.00014887,2]
[426530525,1782547838000,-11058.58815805,0.00014887,2]
[426530526,1782547838000,-1148.53642385,0.00014887,2]
[426530524,1782547838000,-500.0,0.00014886,2]
[426530572,1782547840000,-498.76992926,0.000149,2]
[426530571,1782547840000,-5565.98604843,0.000149,2]
[426530570,1782547840000,-506.65792042,0.000149,2]
[426530569,1782547840000,-11020.90067838,0.000149,2]
[426530567,1782547840000,-204.80971513,0.00014899,2]
[426530565,1782547840000,-163.72150379,0.00014899,2]
[426530560,1782547840000,-33336.8515,0.00014891,2]
[426530562,1782547840000,-549.25305836,0.00014899,2]
[426530557,1782547840000,-84068.38056662,0.00014887,2]
[426530561,1782547840000,-2000.0,0.00014891,2]
[426530559,1782547840000,-152.0,0.00014891,2]
[426530568,1782547840000,-181.38615018,0.000149,2]
[426530558,1782547840000,-150.0,0.00014891,2]
[426530553,1782547840000,-360.42425931,0.00014887,2]
[426530552,1782547840000,-353.47176662,0.00014887,2]
[426530563,1782547840000,-500.0,0.00014899,2]
[426530574,1782547840000,-350.0,0.00014948,2]
[426530578,1782547840000,-150.0,0.00014986,2]
[426530576,1782547840000,-150.0,0.00014986,2]
[426530575,1782547840000,-150.0,0.00014986,2]
[426530592,1782547840000,-1132.46,0.00014999,2]
[426530590,1782547840000,-202.15,0.00014999,2]
[426530591,1782547840000,-1132.46,0.00014999,2]
[426530589,1782547840000,-500.0,0.00014999,2]
[426530586,1782547840000,-500.0,0.00014999,2]
[426530588,1782547840000,-500.0,0.00014999,2]
[426530587,1782547840000,-500.0,0.00014999,2]
[426530583,1782547840000,-151.0,0.00014997,2]
[426530584,1782547840000,-151.0,0.00014997,2]
[426530582,1782547840000,-151.0,0.00014997,2]
[426530581,1782547840000,-166.18296072,0.0001499,2]
[426530580,1782547840000,-121244.64309844,0.00014989,2]
[426530579,1782547840000,-150.0,0.00014986,2]
[426530577,1782547840000,-150.0,0.00014986,2]
[426530585,1782547840000,-502.65527136,0.00014999,2]
[426530573,1782547840000,-292.18633256,0.00014908,2]
[426530634,1782547841000,-500.0,0.00015,2]
[426530628,1782547841000,-500.0,0.00015,2]
[426530627,1782547841000,-500.0,0.00015,2]
[426530625,1782547841000,-500.0,0.00015,2]
[426530624,1782547841000,-500.0,0.00015,2]
[426530643,1782547841000,-500.0,0.00015,2]
[426530618,1782547841000,-151.0,0.00015,2]
[426530626,1782547841000,-500.0,0.00015,2]
[426530640,1782547841000,-500.0,0.00015,2]
[426530622,1782547841000,-500.0,0.00015,2]
[426530631,1782547841000,-500.0,0.00015,2]
[426530637,1782547841000,-500.0,0.00015,2]
[426530639,1782547841000,-500.0,0.00015,2]
[426530632,1782547841000,-500.0,0.00015,2]
[426530635,1782547841000,-500.0,0.00015,2]
[426530633,1782547841000,-500.0,0.00015,2]
[426530636,1782547841000,-500.0,0.00015,2]
[426530638,1782547841000,-500.0,0.00015,2]
[426530621,1782547841000,-500.0,0.00015,2]
[426530630,1782547841000,-500.0,0.00015,2]
[426530641,1782547841000,-500.0,0.00015,2]
[426530642,1782547841000,-500.0,0.00015,2]
[426530644,1782547841000,-502.973283,0.00015,2]
[426530629,1782547841000,-500.0,0.00015,2]
[426530620,1782547841000,-500.0,0.00015,2]
[426530612,1782547841000,-408.63,0.00015,2]
[426530617,1782547841000,-151.0,0.00015,2]
[426530593,1782547841000,-1132.46,0.00014999,2]
[426530594,1782547841000,-1132.46,0.00014999,2]
[426530597,1782547841000,-1132.46,0.00014999,2]
[426530595,1782547841000,-1132.46,0.00014999,2]
[426530596,1782547841000,-1132.46,0.00014999,2]
[426530598,1782547841000,-1132.46,0.00014999,2]
[426530599,1782547841000,-1132.46,0.00014999,2]
[426530600,1782547841000,-1132.46,0.00014999,2]
[426530601,1782547841000,-1132.46,0.00014999,2]
[426530602,1782547841000,-500.0,0.00014999,2]
[426530603,1782547841000,-500.0,0.00014999,2]
[426530604,1782547841000,-500.0,0.00014999,2]
[426530606,1782547841000,-500.0,0.00014999,2]
[426530607,1782547841000,-500.0,0.00014999,2]
[426530613,1782547841000,-158.05428693,0.00015,2]
[426530608,1782547841000,-468.38878737,0.00014999,2]
[426530611,1782547841000,-2331023.2805886,0.00015,2]
[426530609,1782547841000,-234943.29269492,0.00015,2]
[426530605,1782547841000,-500.0,0.00014999,2]
[426530610,1782547841000,-301.49,0.00015,2]
[426530614,1782547841000,-151.0,0.00015,2]
[426530615,1782547841000,-151.0,0.00015,2]
[426530616,1782547841000,-151.0,0.00015,2]
[426530619,1782547841000,-500.0,0.00015,2]
[426530647,1782547841000,-151.0,0.00015,2]
[426530623,1782547841000,-500.0,0.00015,2]
[426530645,1782547841000,-151.0,0.00015,2]
[426530676,1782547841000,-166.66,0.00018279,2]
[426530680,1782547841000,-297.77,0.0001885,2]
[426530678,1782547841000,-975.72,0.00018593,2]
[426530681,1782547841000,-166.66,0.00019048,2]
[426530679,1782547841000,-166.66,0.00018664,2]
[426530677,1782547841000,-168.79,0.00018561,2]
[426530682,1782547841000,-151.0,0.00019178,2]
[426530688,1782547841000,-167.76,0.00019712,2]
[426530687,1782547841000,-3159.31346157,0.00019704,2]
[426530690,1782547841000,-166.66,0.00019818,2]
[426530684,1782547841000,-153.02,0.00019241,2]
[426530675,1782547841000,-169.67,0.00018052,2]
[426530683,1782547841000,-153.555905,0.00019178,2]
[426530689,1782547841000,-160.0,0.00019807,2]
[426530685,1782547841000,-166.66,0.00019433,2]
[426530691,1782547841000,-151.0,0.00019827,2]
[426530692,1782547841000,-1785.49,0.0001989,2]
[426530695,1782547841000,-434.0,0.00020631,5]
[426530699,1782547841000,-519.85,0.00021273,2]
[426530693,1782547841000,-166.66,0.00020203,2]
[426530697,1782547841000,-761.9,0.00020879,2]
[426530694,1782547841000,-297.77,0.00020564,2]
[426530698,1782547841000,-430.42457541,0.00021136,7]
[426530646,1782547841000,-151.0,0.00015,2]
[426530686,1782547841000,-169.67,0.00019693,2]
[426530674,1782547841000,-301.49,0.00018,2]
[426530696,1782547841000,-437.0,0.00020631,5]
[426530673,1782547841000,-241.2,0.00017991,2]
[426530672,1782547841000,-235.44,0.0001725,2]
[426530649,1782547841000,-151.0,0.00015,2]
[426530651,1782547841000,-270.200615,0.00015,2]
[426530652,1782547841000,-297.77,0.00015423,2]
[426530650,1782547841000,-151.0,0.00015,2]
[426530653,1782547841000,-216.51184279,0.00015429,2]
[426530654,1782547841000,-168.79,0.00015467,2]
[426530655,1782547841000,-204.0,0.00016,2]
[426530656,1782547841000,-169.67,0.00016411,2]
[426530659,1782547841000,-500.0,0.00016438,2]
[426530666,1782547841000,-500.0,0.00016438,2]
[426530664,1782547841000,-500.0,0.00016438,2]
[426530648,1782547841000,-270.006238,0.00015,2]
[426530657,1782547841000,-500.0,0.00016438,2]
[426530660,1782547841000,-500.0,0.00016438,2]
[426530658,1782547841000,-500.0,0.00016438,2]
[426530665,1782547841000,-500.0,0.00016438,2]
[426530663,1782547841000,-303.83455391,0.00016438,2]
[426530661,1782547841000,-500.0,0.00016438,2]
[426530668,1782547841000,-151.95,0.00016712,2]
[426530667,1782547841000,-500.0,0.00016438,2]
[426530669,1782547841000,-168.79,0.00017014,2]
[426530670,1782547841000,-297.77,0.00017136,2]
[426530671,1782547841000,-3159.31346157,0.00017248,2]
[426530662,1782547841000,-500.0,0.00016438,2]
[426530734,1782547842000,-743.83,0.00024174,2]
[426530733,1782547842000,-153.02,0.00024051,2]
[426530736,1782547842000,-179.38365791,0.00024351,60]
[426530735,1782547842000,-500.0,0.00024215,2]
[426530725,1782547842000,-582.3774,0.00023136,7]
[426530730,1782547842000,-439.0,0.000236,5]
[426530732,1782547842000,-151.0,0.00024032,7]
[426530729,1782547842000,-179.38365791,0.00023406,14]
[426530727,1782547842000,-8550.59783956,0.000232,2]
[426530731,1782547842000,-500.0,0.00024,3]
[426530737,1782547842000,-890.82613012,0.00024358,2]
[426530744,1782547842000,-185.63,0.00024658,2]
[426530742,1782547842000,-177.23,0.00024658,2]
[426530746,1782547842000,-168.0,0.000249,7]
[426530745,1782547842000,-182.59,0.00024658,2]
[426530740,1782547842000,-3159.31346157,0.00024617,2]
[426530743,1782547842000,-182.58,0.00024658,2]
[426530741,1782547842000,-1000.0,0.00024658,2]
[426530747,1782547842000,-155.312827,0.00024941,2]
[426530749,1782547842000,-519.85,0.00024961,7]
[426530753,1782547842000,-122641.50880728,0.000258,2]
[426530728,1782547842000,-8550.59783956,0.000234,2]
[426530748,1782547842000,-500.0,0.00024941,2]
[426530738,1782547842000,-151.0,0.00024615,2]
[426530726,1782547842000,-1132.46,0.00023199,2]
[426530717,1782547842000,-179.38365791,0.0002246,2]
[426530723,1782547842000,-8550.59783956,0.000229,2]
[426530750,1782547842000,-743.83,0.00024961,7]
[426530700,1782547842000,-8550.59783956,0.000214,2]
[426530701,1782547842000,-433.056,0.000214,2]
[426530702,1782547842000,-191.57145169,0.000214,2]
[426530703,1782547842000,-211.91966716,0.000214,2]
[426530707,1782547842000,-153.02,0.00021646,2]
[426530709,1782547842000,-433.056,0.000218,2]
[426530705,1782547842000,-433.056,0.000216,2]
[426530704,1782547842000,-8550.59783956,0.000216,2]
[426530706,1782547842000,-191.57145169,0.000216,2]
[426530708,1782547842000,-8550.59783956,0.000218,2]
[426530710,1782547842000,-571.0,0.000218,2]
[426530712,1782547842000,-8550.59783956,0.00022,2]
[426530718,1782547842000,-600.28,0.00022466,2]
[426530713,1782547842000,-433.056,0.00022,2]
[426530711,1782547842000,-5000.0,0.00021918,2]
[426530716,1782547842000,-433.056,0.000223,2]
[426530714,1782547842000,-3159.31346157,0.00022161,2]
[426530715,1782547842000,-8550.59783956,0.000223,2]
[426530719,1782547842000,-332.39,0.00022466,2]
[426530720,1782547842000,-8550.59783956,0.000225,2]
[426530721,1782547842000,-8550.59783956,0.000227,2]
[426530722,1782547842000,-200.0,0.00022779,2]
[426530724,1782547842000,-1019.92509377,0.00023,2]
[426530751,1782547842000,-151.0,0.00025797,7]
[426530739,1782547842000,-151.0,0.00024615,2]
[426530755,1782547842000,-498.76992924,0.00026008,2]
[426530777,1782547842000,-152.395376,0.00027397,2]
[426530785,1782547842000,-152.395376,0.00027397,2]
[426530786,1782547842000,-152.395376,0.00027397,2]
[426530788,1782547842000,-152.395376,0.00027397,2]
[426530791,1782547842000,-7047.11,0.00027397,10]
[426530787,1782547842000,-152.395376,0.00027397,2]
[426530795,1782547842000,-150.99,0.00027397,2]
[426530790,1782547842000,-152.395376,0.00027397,2]
[426530792,1782547842000,-5872.59,0.00027397,10]
[426530796,1782547842000,-7679.02,0.00027397,2]
[426530793,1782547842000,-4893.82,0.00027397,10]
[426530794,1782547842000,-4078.19,0.00027397,10]
[426530798,1782547842000,-204.84,0.00027397,2]
[426530797,1782547842000,-19520.46,0.00027397,10]
[426530799,1782547842000,-9999.99,0.00027397,2]
[426530805,1782547842000,-153.02,0.00028861,120]
[426530801,1782547842000,-4728.34,0.00027397,2]
[426530800,1782547842000,-514.42,0.00027397,2]
[426530804,1782547842000,-890.82613012,0.00027547,2]
[426530803,1782547842000,-500.0,0.000275,7]
[426530806,1782547842000,-1132.46,0.00028995,7]
[426530802,1782547842000,-571.0,0.000275,7]
[426530808,1782547842000,-16840.17146885,0.00028996,7]
[426530783,1782547842000,-152.395376,0.00027397,2]
[426530780,1782547842000,-152.395376,0.00027397,2]
[426530789,1782547842000,-152.395376,0.00027397,2]
[426530778,1782547842000,-152.395376,0.00027397,2]
[426530756,1782547842000,-166.18296072,0.00026058,2]
[426530754,1782547842000,-154.527032,0.000258,2]
[426530757,1782547842000,-153.02,0.00026456,120]
[426530758,1782547842000,-875.797,0.0002651,2]
[426530760,1782547842000,-151.0,0.00027397,2]
[426530781,1782547842000,-152.395376,0.00027397,2]
[426530761,1782547842000,-151.0,0.00027397,2]
[426530767,1782547842000,-500.0,0.00027397,2]
[426530762,1782547842000,-500.0,0.00027397,2]
[426530766,1782547842000,-500.0,0.00027397,2]
[426530765,1782547842000,-500.0,0.00027397,2]
[426530807,1782547842000,-152.3954,0.00028995,7]
[426530759,1782547842000,-3159.31346157,0.00027074,2]
[426530763,1782547842000,-500.0,0.00027397,2]
[426530764,1782547842000,-500.0,0.00027397,2]
[426530776,1782547842000,-152.395376,0.00027397,2]
[426530779,1782547842000,-152.395376,0.00027397,2]
[426530775,1782547842000,-152.395376,0.00027397,2]
[426530774,1782547842000,-152.395376,0.00027397,2]
[426530752,1782547842000,-151.0,0.00025797,7]
[426530773,1782547842000,-150.0,0.00027397,2]
[426530784,1782547842000,-152.395376,0.00027397,2]
[426530771,1782547842000,-215.74917924,0.00027397,2]
[426530769,1782547842000,-500.0,0.00027397,2]
[426530768,1782547842000,-500.0,0.00027397,2]
[426530809,1782547843000,-123074.22252709,0.00028996,7]
[426530810,1782547843000,-14226.92984739,0.00028996,7]
[426530824,1782547846000,-839.302312,0.00028996,7]
[426530823,1782547846000,-776.13,0.00028996,7]
[426530820,1782547846000,-181.52,0.00024658,2]
[426530821,1782547846000,-3398.49,0.00028986,10]
[426530818,1782547846000,-277.58874476,0.00017403,2]
[426530819,1782547846000,-151.0,0.00024658,2]
[426530822,1782547846000,-3966.96582421,0.00028996,7]
[426530863,1782547847000,-101.21415326,0.00028996,7]
[426530862,1782547847000,-165.10857387,0.00027547,2]
[426530861,1782547847000,-493.61324536,0.00028996,7]
[426530864,1782547848000,-2101.01356734,0.00028996,7]
[426530870,1782548050000,-373.74,0.00029424,120]
[426530871,1782548050000,-168.0,0.0003,120]
[426530909,1782548819000,150.0,9.983e-05,2]
[426530913,1782548820000,322.64,9.966e-05,2]
[426530912,1782548820000,322.64,9.861e-05,2]
[426530911,1782548820000,322.64,9.798e-05,2]
[426530910,1782548820000,322.64,9.777e-05,2]
[426530915,1782548951000,314.71,9.861e-05,2]
[426530914,1782548951000,314.71,9.608e-05,2]
[426530918,1782548985000,-107.35563371,0.00010292,2]
[426530916,1782548985000,-322.64,0.00010113,2]
[426530917,1782548985000,-150.0,0.00010203,2]
[426530920,1782548987000,329.08,9.861e-05,2]